Cogmind - Beta 15 @@@ ROGUE MODE // 2025.10.16 @ 21:59:33 Player: Bean Result: Destroyed by Y-64 Sentinel with Wave Gun Performance ------------- Evolutions (6) 3000 Regions Visited (13) 2600 Robots Destroyed (85) 425 Value Destroyed (2886) 2886 Prototype IDs (3) 60 Alien Tech Used (0) 0 Bonus (887) 887 TOTAL SCORE: 9858 Bonus ------- High Alert Combat Kills 76 Follower Combat Kills 428 Entered DSFs 500 Friendly Fire -117 Cogmind --------- Core Integrity 0/1150 Matter 300/300 Energy 99/100 System Corruption 0% Temperature Cool (9) Movement Core (50) Location -4/Factory Parts ------- > --- POWER (3) -------- (None) > --- PROPULSION (8) --- (None) > --- UTILITY (5) ------ (None) > --- WEAPON (3) ------- (None) > --- INVENTORY (5) ---- Flexi-carbon Leg Flexi-carbon Leg Advanced Heat Sink Advanced ECM Suite Backup Laser I Peak State ------------ > --- POWER ------------ Neutrino Core Neutrino Core Neutrino Core > --- PROPULSION ------- Carbon-fiber Leg Carbon-fiber Leg Carbon-fiber Leg Carbon-fiber Leg Flexi-carbon Leg Flexi-carbon Leg Flexi-carbon Leg > --- UTILITY ---------- Improved Heat Sink Advanced Heat Sink Experimental Core Analyzer Advanced ECM Suite > --- WEAPON ----------- Heavy Laser Plasma Cannon Plasma Cannon > --- INVENTORY -------- Cold Fusion Reactor Flexi-carbon Leg Advanced Heat Sink Hypervelocity Mass Driver Rocket Launcher [Rating: 81] Favorites ----------- Power Neutrino Core Engine Ion Engine Power Core Neutrino Core Reactor Cold Fusion Reactor Propulsion Carbon-fiber Leg Leg Carbon-fiber Leg Utility Advanced Heat Sink Device Advanced Heat Sink Storage Small Storage Unit Processor Experimental Core Analyzer Hackware Hacking Suite Protection Improved Light Armor Plating Weapon Plasma Cannon Energy Gun Phase Gun Energy Cannon Plasma Cannon Ballistic Gun Light Assault Rifle Ballistic Cannon Light Cannon Launcher Rocket Launcher Slashing Weapon Katana Build | -11 -10 -9 -9 -8 -7 -7 -6 -5 -5 -5 -5 -5 -4 ------- Run | Yrd Mat Mat Min Mat Fac DSF Fac Fac Was Fac Upp Upp Fac Slots Evolved 12 | . . 2 . 2 2 . 2 2 . . . . 2 Power 2 | . . . . . . . 1 1 . . . . . Propulsion 6 | . . 2 . 1 1 . . 1 . . . . 1 Utility 3 | . . . . . 1 . 1 . . . . . 1 Weapon 1 | . . . . 1 . . . . . . . . . Parts Attached 74 | 7 3 11 1 4 . 8 7 12 3 2 6 1 9 Power 13 | 1 1 1 . 1 . 1 2 3 . . 1 . 2 Engine 6 | 1 1 1 . 1 . 1 1 . . . . . . Core 5 | . . . . . . . . 3 . . 1 . 1 Reactor 2 | . . . . . . . 1 . . . . . 1 Propulsion 22 | 2 . 5 . . . 3 3 4 . 2 1 . 2 Treads . | . . . . . . . . . . . . . . Leg 22 | 2 . 5 . . . 3 3 4 . 2 1 . 2 Wheel . | . . . . . . . . . . . . . . Hover . | . . . . . . . . . . . . . . Flight . | . . . . . . . . . . . . . . Utility 16 | 2 . 1 . . . 1 2 3 2 . 1 1 3 Device 10 | 1 . 1 . . . 1 2 3 . . . 1 1 Storage 2 | 1 . . . . . . . . . . . . 1 Processor 1 | . . . . . . . . . 1 . . . . Hackware 1 | . . . . . . . . . . . . . 1 Protection 2 | . . . . . . . . . 1 . 1 . . Artifact . | . . . . . . . . . . . . . . Weapon 23 | 2 2 4 1 3 . 3 . 2 1 . 3 . 2 Energy Gun 6 | 1 . . . . . . . 1 . . 2 . 2 Energy Cannon 5 | . . . . . . 3 . . 1 . 1 . . Ballistic Gun 1 | 1 . . . . . . . . . . . . . Ballistic Cannon 6 | . 2 3 . 1 . . . . . . . . . Launcher 4 | . . 1 1 1 . . . 1 . . . . . Special Weapon . | . . . . . . . . . . . . . . Impact Weapon . | . . . . . . . . . . . . . . Slashing Weapon 1 | . . . . 1 . . . . . . . . . Piercing Weapon . | . . . . . . . . . . . . . . Special Melee Weapon . | . . . . . . . . . . . . . . Unidentified Prototypes 3 | . . . . . . . 1 . 2 . . . . Parts Lost 50 | . 1 4 . 9 . . . 2 . 5 8 1 20 Power 9 | . 1 1 . 1 . . . . . 1 1 . 4 Propulsion 20 | . . 3 . 4 . . . 1 . 2 4 1 5 Utility 8 | . . . . 1 . . . . . 1 1 . 5 Weapon 13 | . . . . 3 . . . 1 . 1 2 . 6 Highest Loss Streak 20 | . 1 3 . 5 . . . 2 . 3 7 1 20 To Critical Strikes . | . . . . . . . . . . . . . . Average Backups 4 | 2 2 5 7 6 5 4 2 3 4 4 3 2 2 Power . | 1 . . 1 1 1 . . . 1 1 . . . Propulsion . | . . . . . . . . . 1 . . . . Utility . | . . . 1 . . . . . . . . . . Weapon 2 | 1 1 4 5 5 4 3 1 2 2 2 1 1 1 Tool/Special . | . . . . . . . . . . . . . . Unused Backups 13 | . 1 . . 1 . 2 . 1 . 1 3 . 4 Power . | . . . . . . . . . . . . . . Propulsion 2 | . . . . . . . . . . . . . 2 Utility 3 | . . . . 1 . . . . . . 1 . 1 Weapon 8 | . 1 . . . . 2 . 1 . 1 2 . 1 Tool/Special . | . . . . . . . . . . . . . . Average Slot Usage (%) 82 | . 100 83 100 59 . 9 68 95 100 98 82 78 62 Engine 3 | . 14 11 11 5 . 1 6 4 . . . . . Core 7 | . . . . . . . . 7 17 16 12 11 8 Reactor 2 | . . . . . . . 4 3 . . 3 5 4 Leg 29 | . 28 28 44 19 . 3 24 38 41 40 28 21 14 Device 14 | . 14 11 11 6 . . 13 20 23 21 14 15 12 Storage 3 | . 14 11 11 7 . . . . . . . . 4 Protection 1 | . . . . . . . . . . . 2 5 3 Energy Gun 4 | . 12 . . . . . . . 5 5 6 11 7 Energy Cannon 7 | . . . . . . 4 20 16 11 11 8 5 4 Ballistic Cannon 3 | . 2 21 11 12 . . . . . . . . . Launcher 1 | . . . 10 8 . . . . . . . . . Peak Build Rating 81 | 9 9 12 11 14 . 23 54 76 81 80 73 71 76 Average Rating 48 | 5 8 10 10 8 . 4 37 66 77 77 66 68 59 On Entrance 33 | . 9 9 10 11 . . 23 53 75 80 66 64 68 Naked Turns 150 | . . . . 46 8 74 . . . . . . 22 Heaviest Build 91 | 13 17 19 18 24 . 27 47 73 71 71 72 71 91 Greatest Support 120 | 20 20 40 40 40 3 40 90 120 120 120 100 65 73 Greatest Overweight (x) 7 | 1 . . . 2 . . 1 . . . 1 1 7 Average Overweight (x) . | . . . . . . . . . . . . 1 . Largest Inventory Capacity 15 | 8 8 8 8 8 5 5 5 5 5 5 5 5 15 Average Capacity 6 | 7 8 8 8 7 5 5 5 5 5 5 5 5 13 Most Carried 8 | 5 7 8 8 8 5 5 4 5 5 5 5 3 5 Average Carried 4 | 2 1 6 7 6 5 3 2 3 4 4 3 2 3 Final Capacity 8 | 8 8 8 8 5 5 5 5 5 5 5 5 5 5 Final Carried 8 | 2 4 7 8 5 5 1 3 3 5 5 1 3 5 Class Distribution -------------------- 44% | Scavenger-Gunner 24% | Scavenger-Tank 18% | Mutant 9% | Scavenger-Mutant Dominant Class ---------------- Mutant | -10/Materials Mutant | -9/Materials Scavenger-Mutant | -9/Mines Gunner | -8/Materials Gunner | -7/Factory Mutant | -7/DSF Scavenger-Gunner | -6/Factory Scavenger-Gunner | -5/Factory Scavenger-Gunner | -5/Waste Scavenger-Gunner | -5/Factory Scavenger-Tank | -5/Upper Caves Scavenger-Tank | -5/Upper Caves Scavenger-Tank | -4/Factory Resources | -11 -10 -9 -9 -8 -7 -7 -6 -5 -5 -5 -5 -5 -4 ----------- Run | Yrd Mat Mat Min Mat Fac DSF Fac Fac Was Fac Upp Upp Fac Matter Collected 1947 | 278 24 388 223 30 . 154 272 130 112 24 138 54 120 Remotely . | . . . . . . . . . . . . . . Salvage Created 3237 | 140 125 515 9 166 . . 55 699 419 555 245 . 309 Parts 163 | 9 8 50 . 15 . . . 28 2 30 11 . 10 Haulers Intercepted . | . . . . . . . . . . . . . . Recyclers Shooed 3 | 1 . . . . . . . 1 . 1 . . . Parts Field Recycled . | . . . . . . . . . . . . . . Retrieved Matter . | . . . . . . . . . . . . . . Parts Self-Destructed 9 | . . . . . . . . . . . 9 . . Prevented . | . . . . . . . . . . . . . . Kills | -11 -10 -9 -9 -8 -7 -7 -6 -5 -5 -5 -5 -5 -4 ------- Run | Yrd Mat Mat Min Mat Fac DSF Fac Fac Was Fac Upp Upp Fac Combat Hostiles Destroyed 68 | . 5 21 1 5 . . 1 14 2 10 5 . 4 Melee 1 | . . . . 1 . . . . . . . . . Guns 12 | . 5 . . . . . . 1 . 2 1 . 3 Cannons 35 | . . 17 . 1 . . 1 7 1 5 2 . 1 AOE 16 | . . 4 1 3 . . . 5 . 2 1 . . Classes Destroyed 16 | 2 2 3 1 2 . . . 3 1 2 . . . Worker 4 | . . 1 . 1 . . . . . 2 . . . Builder 4 | . . . . 2 . . . . . 2 . . . Tunneler 3 | 3 . . . . . . . . . . . . . Recycler 3 | 1 . 1 . . . . . 1 . . . . . Mechanic 1 | . . . . . . . . 1 . . . . . Watcher 2 | . . . . 2 . . . . . . . . . Swarmer 24 | . 3 11 . 1 . . . 5 . 4 . . . Grunt 24 | . 2 6 . 3 . . 1 5 . 3 . . 4 Brawler 1 | . . 1 . . . . . . . . . . . Sentry 4 | . . 3 . 1 . . . . . . . . . Specialist 1 | . . . . . . . . . . 1 . . . Hunter 6 | . . . . . . . . 2 . . 4 . . Programmer 4 | . . . . . . . . 2 . 1 1 . . Heavy 1 | . . . . . . . . . . 1 . . . Compactor 2 | . . . . . . . . . 2 . . . . Assembled 1 | . . . 1 . . . . . . . . . . Surgeon 1 | . . . . . . . . . . 1 . . . Best Kill Streak 18 | 4 3 18 1 6 . . 1 12 1 6 3 . 3 Combat Bots Only 17 | . 3 17 1 2 . . 1 6 1 4 3 . 3 Max Kills in Single Turn 4 | 1 1 3 1 1 . . 1 4 1 4 1 . 1 Gunslinging . | . . . . . . . . . . . . . . Exploded 3 | . . 3 1 1 . . . 3 . 2 1 . . Melee 1 | . . . . 1 . . . . . . . . . Uniques/NPCs Destroyed . | . . . . . . . . . . . . . . Combat | -11 -10 -9 -9 -8 -7 -7 -6 -5 -5 -5 -5 -5 -4 -------- Run | Yrd Mat Mat Min Mat Fac DSF Fac Fac Was Fac Upp Upp Fac Hostile Shots Fired 697 | . 26 155 . 118 . . . 84 . 51 49 9 205 Missed 196 | . 3 36 . 48 . . . 21 . 10 7 4 67 Hits 501 | . 23 119 . 70 . . . 63 . 41 42 5 138 Projectile 501 | . 23 119 . 70 . . . 63 . 41 42 5 138 AOE 2 | . . . . . . 2 . . . . . . . Critical Strikes 18 | . . 2 . 1 . . . 2 . 1 2 . 10 Part Disruptions 1 | . . . . . . . . . . 1 . . . Damage Taken 7831 | . 256 1126 47 1038 . 64 . 920 . 886 745 117 2632 Core 1896 | . 29 170 . 288 . 64 . 67 . 65 54 . 1159 Absorbed by Shields 170 | . . . . . . . . 170 . . . . . Regen/Repaired (Parts) 202 | . . . . . . . . . 163 39 . . . Core Remaining (%) 80 | 100 88 . 57 47 . 90 100 . . . . 81 . Volleys Fired 202 | 8 19 52 2 18 . . 2 27 7 27 12 . 28 Largest 3 | 2 2 2 2 3 . . 3 3 3 3 3 . 3 Hottest 274 | 60 60 63 63 96 . . 240 240 262 262 247 . 274 Shots Fired 468 | 16 38 104 4 46 . . 6 75 21 80 30 . 48 Gun 134 | 16 38 . . . . . . 6 7 26 12 . 29 Cannon 308 | . . 102 2 29 . . 6 67 14 54 15 . 19 Launcher 26 | . . 2 2 17 . . . 2 . . 3 . . Special . | . . . . . . . . . . . . . . Kinetic 160 | 8 19 102 2 29 . . . . . . . . . Thermal 282 | 8 19 . . . . . 6 73 21 80 27 . 48 Explosive 26 | . . 2 2 17 . . . 2 . . 3 . . Electromagnetic . | . . . . . . . . . . . . . . Robot Hit Streak 19 | 8 7 5 1 3 . . 1 17 10 19 10 . 9 Robot Miss Streak 6 | 1 3 4 1 6 . . 3 2 2 3 3 . 3 Penetration Max . | . . . . . . . . . . . . . . Secondary Targets 1 | . 1 . . . . . . . . . . . . Max Gunslinging Chain 1 | . 1 . . . . . . . . . . . . Shots Hit Robots 275 | 12 26 53 1 19 . . 1 51 14 45 21 . 32 Core Hits 137 | 6 10 27 . 19 . . 1 27 4 19 11 . 13 Critical Kills . | . . . . . . . . . . . . . . Critical Parts Destroyed . | . . . . . . . . . . . . . . Critical Strikes 4 | . . 1 . . . . . . 1 1 1 . . Burn 3 | . . . . . . . . . 1 1 1 . . Blast 1 | . . 1 . . . . . . . . . . . Melee Attacks 5 | . . . . 5 . . . . . . . . . Impact . | . . . . . . . . . . . . . . Slashing 5 | . . . . 5 . . . . . . . . . Piercing . | . . . . . . . . . . . . . . Sneak Attacks . | . . . . . . . . . . . . . . Combat Hostiles . | . . . . . . . . . . . . . . Follow-up Attacks . | . . . . . . . . . . . . . . Damage Inflicted 8330 | 117 240 1091 48 907 . . 24 1762 403 1974 770 . 994 Guns 1587 | 117 240 . . . . . . 97 96 391 158 . 488 Cannons 4725 | . . 906 . 213 . . 24 1219 307 1144 420 . 492 Explosions 1812 | . . 185 48 574 . . . 446 . 367 192 . . Melee 100 | . . . . 100 . . . . . . . . . Ramming 106 | . . . . 20 . . . . . 72 . . 14 Kinetic 1233 | 39 75 906 . 213 . . . . . . . . . Thermal 5079 | 78 165 . . . . . 24 1316 403 1535 578 . 980 Explosive 1812 | . . 185 48 574 . . . 446 . 367 192 . . Electromagnetic . | . . . . . . . . . . . . . . Impact . | . . . . . . . . . . . . . . Slashing 100 | . . . . 100 . . . . . . . . . Piercing . | . . . . . . . . . . . . . . Highest Corruption 7 | . . . . 2 . . . 6 6 7 7 7 . Average Corruption 6 | . . . . 1 . . . 5 6 6 7 4 . Corruption Purged 7 | . . . . . . . . . . . . 7 . Corruption Blocked . | . . . . . . . . . . . . . . Effects 48 | . . . . . . . . 4 7 9 22 6 . Message Errors 13 | . . . . . . . . 2 2 3 3 3 . Matter Fused 13 | . . . . . . . . . 3 3 5 2 . Heat Flow Errors 7 | . . . . . . . . . 1 1 5 . . Energy Discharges 1 | . . . . . . . . . . . 1 . . Parts Rejected 1 | . . . . . . . . 1 . . . . . Data Loss (minor) 9 | . . . . . . . . 1 1 . 6 1 . Data Loss (major) 1 | . . . . . . . . . . . 1 . . Misfires 1 | . . . . . . . . . . 1 . . . Weapon Failures 2 | . . . . . . . . . . 1 1 . . Overload Shots . | . . . . . . . . . . . . . . Overflow Damage 318 | . . 50 15 62 . . . 47 . 118 26 . . Projectiles 127 | . . 9 . 9 . . . 30 . 53 26 . . Explosions 190 | . . 41 15 53 . . . 17 . 64 . . . Melee 1 | . . . . . . . . . . 1 . . . Knockbacks 21 | . . 12 . 6 . . . . . 3 . . . Impact 2 | . . . . . . . . . . 2 . . . Kinetic 17 | . . 11 . 6 . . . . . . . . . Secondary 2 | . . 1 . . . . . . . 1 . . . Self-Inflicted Damage 255 | . . . 47 88 . . . . . 113 . . 7 Shots 6 | . . . 1 4 . . . . . 1 . . . Rammed 7 | . . . . 5 . . . . . . . . 2 Targets Rammed 12 | . . . . 7 . . . . . 3 . . 2 Kicked 5 | . . . . 2 . . . . . 3 . . . Crushed . | . . . . . . . . . . . . . . Highest Temperature 671 | 40 102 31 . 15 . . 300 369 143 415 282 . 671 Average Temperature 123 | 16 42 11 . 10 . . 159 110 59 162 111 . 239 Received Heat Transfer 1181 | . 96 258 . 297 . 9 . 135 . 135 . 18 233 Effects 20 | . . . . . . . . 1 . 1 . . 18 Shutdowns 3 | . . . . . . . . 1 . 1 . . 1 Energy Bleed 4 | . . . . . . . . . . . . . 4 Interference 3 | . . . . . . . . . . . . . 3 Matter Decay 2 | . . . . . . . . . . . . . 2 Short Circuit 3 | . . . . . . . . . . . . . 3 Damage (minor) 1 | . . . . . . . . . . . . . 1 Damage (major) 3 | . . . . . . . . . . . . . 3 Damage (core) 1 | . . . . . . . . . . . . . 1 Siege Activations . | . . . . . . . . . . . . . . Martial Activations . | . . . . . . . . . . . . . . Shielding Activations . | . . . . . . . . . . . . . . Robots Disrupted . | . . . . . . . . . . . . . . Combat Hostiles . | . . . . . . . . . . . . . . Robots Corrupted 1 | . . . . . . . . . . 1 . . . Combat Hostiles . | . . . . . . . . . . . . . . Parts Fried 1 | . . . . . . . . . . 1 . . . Impact Corruptions 2 | . . . . . . . . . . 2 . . . Robots Melted 4 | . . . . . . . . 1 1 1 1 . . Combat Hostiles 4 | . . . . . . . . 1 1 1 1 . . Parts Melted 22 | . . . . . . . . 8 . 11 3 . . Heat Transferred 8569 | 175 375 . . . . . 50 2485 783 2293 1033 . 1375 Parts Sabotaged . | . . . . . . . . . . . . . . Parts Stolen . | . . . . . . . . . . . . . . Parts Stripped . | . . . . . . . . . . . . . . Power Chain Reactions . | . . . . . . . . . . . . . . Alert | -11 -10 -9 -9 -8 -7 -7 -6 -5 -5 -5 -5 -5 -4 ------- Run | Yrd Mat Mat Min Mat Fac DSF Fac Fac Was Fac Upp Upp Fac Maximum Alert Level 2 | . . 1 . . . . . 1 . 2 . . . Low Security (%) 84 | 100 100 72 100 100 100 100 100 94 100 17 . . 100 Level 1 10 | . . 27 . . . . . 5 . 46 . . . Level 2 4 | . . . . . . . . . . 36 . . . Level 3 . | . . . . . . . . . . . . . . Level 4 . | . . . . . . . . . . . . . . Level 5 . | . . . . . . . . . . . . . . High Security . | . . . . . . . . . . . . . . Max Security . | . . . . . . . . . . . . . . Peak Influence 579 | 10 100 342 129 169 30 39 20 238 104 579 . . 42 Initial 125 | . . 20 125 16 30 24 20 4 80 51 . . . Average 86 | 3 47 118 88 106 30 34 4 27 62 312 . . 4 Influence Increases 2654 | 20 120 522 27 273 5 15 20 377 114 938 110 . 113 Destroy 0b10 Robot/C 1480 | . 100 420 . 100 . . 20 280 . 380 100 . 80 Destroy 0b10 Robot/NC 105 | 20 . 10 . 25 . . . 10 . 40 . . . Destroy Leader 274 | . 20 80 . 24 . . . 40 . 90 10 . 10 Allied During Kill 216 | . . . . . . . . . . 216 . . . Successful Hack 8 | . . . . . 5 . . 3 . . . . . Disable Machine 105 | . . . 15 15 . . . 30 . 30 . . 15 Destroy Structure 451 | . . 12 12 109 . . . 14 114 182 . . 8 Lose Combat Pursuer 15 | . . . . . . 15 . . . . . . . Influence Decreases 2654 | 20 70 250 307 246 39 11 49 157 270 443 647 32 113 Entered New Map 719 | . . 30 197 26 39 11 19 6 150 23 211 7 . Time Decay 1388 | 20 70 180 110 130 . . 30 131 120 180 356 25 36 Lost Part 357 | . . 40 . 90 . . . 20 . 50 80 . 77 Lost Ally 190 | . . . . . . . . . . 190 . . . Squads Dispatched 17 | . . 1 . 4 . 2 1 3 . 6 . . . Investigation . | . . . . . . . . . . . . . . Extermination 2 | . . . . . . . . 1 . 1 . . . Reinforcement 15 | . . 1 . 4 . 2 1 2 . 5 . . . Assault . | . . . . . . . . . . . . . . Garrison . | . . . . . . . . . . . . . . Intercept . | . . . . . . . . . . . . . . Searches Triggered . | . . . . . . . . . . . . . . Construction Impeded 3 | . . . . . . . . 1 . 2 . . . Haulers Reinforced . | . . . . . . . . . . . . . . Active Scanning Responses . | . . . . . . . . . . . . . . Cargo Convoy Interrupts . | . . . . . . . . . . . . . . Stealth | -11 -10 -9 -9 -8 -7 -7 -6 -5 -5 -5 -5 -5 -4 --------- Run | Yrd Mat Mat Min Mat Fac DSF Fac Fac Was Fac Upp Upp Fac Distress Signals 7 | . . 2 . 3 . . . 1 . 1 . . . Communications Jammed . | . . . . . . . . . . . . . . Distress Signals . | . . . . . . . . . . . . . . Times Spotted 127 | . 5 28 1 21 . 4 1 24 7 22 5 2 7 Peak Tracking Total 9 | . 3 8 1 9 . 4 1 6 2 4 3 1 4 Tactical Retreats 11 | . . . . . . 1 . 4 . 4 . 2 . Traps | -11 -10 -9 -9 -8 -7 -7 -6 -5 -5 -5 -5 -5 -4 ------- Run | Yrd Mat Mat Min Mat Fac DSF Fac Fac Was Fac Upp Upp Fac Traps Triggered 1 | . . . . . . . . 1 . . . . . Indirectly . | . . . . . . . . . . . . . . Trap Hack Attempts . | . . . . . . . . . . . . . . Triggered . | . . . . . . . . . . . . . . Disarmed . | . . . . . . . . . . . . . . Reprogrammed . | . . . . . . . . . . . . . . Reused . | . . . . . . . . . . . . . . Traps Extracted . | . . . . . . . . . . . . . . Installed . | . . . . . . . . . . . . . . Triggered . | . . . . . . . . . . . . . . Machines | -11 -10 -9 -9 -8 -7 -7 -6 -5 -5 -5 -5 -5 -4 ---------- Run | Yrd Mat Mat Min Mat Fac DSF Fac Fac Was Fac Upp Upp Fac Machines Disabled 7 | . . . 1 1 . . . 2 . 2 . . 1 Max in Single Turn 1 | . . . 1 1 . . . 1 . 1 . . 1 Machines Repaired . | . . . . . . . . . . . . . . Machines Dismantled . | . . . . . . . . . . . . . . Machines Sabotaged . | . . . . . . . . . . . . . . Overloaded Fab Kills . | . . . . . . . . . . . . . . Hacking | -11 -10 -9 -9 -8 -7 -7 -6 -5 -5 -5 -5 -5 -4 --------- Run | Yrd Mat Mat Min Mat Fac DSF Fac Fac Was Fac Upp Upp Fac Machines Accessed 6 | . . . . . 1 . . 1 . 2 1 . 1 Terminals 2 | . . . . . 1 . . . . 1 . . . Fabricators . | . . . . . . . . . . . . . . Repair Stations 2 | . . . . . . . . . . 1 . . 1 Recycling Units 1 | . . . . . . . . 1 . . . . . Scanalyzers . | . . . . . . . . . . . . . . Garrison Access . | . . . . . . . . . . . . . . Total Hacks 9 | . . . . . 2 . . 2 . 2 1 . 2 Successful 6 | . . . . . 1 . . 2 . . 1 . 2 Failed 3 | . . . . . 1 . . . . 2 . . . Catastrophic . | . . . . . . . . . . . . . . Database Lockouts . | . . . . . . . . . . . . . . Manual 3 | . . . . . . . . 2 . 1 . . . Terminals 3 | . . . . . 2 . . . . 1 . . . Fabricators . | . . . . . . . . . . . . . . Repair Stations 3 | . . . . . . . . . . 1 . . 2 Recycling Units 2 | . . . . . . . . 2 . . . . . Scanalyzers . | . . . . . . . . . . . . . . Garrison Access . | . . . . . . . . . . . . . . Terminal Hacks 2 | . . . . . 1 . . . . . 1 . . Open Door 1 | . . . . . . . . . . . 1 . . Open DSF 1 | . . . . . 1 . . . . . . . . Fabricator Hacks . | . . . . . . . . . . . . . . Repair Station Hacks 2 | . . . . . . . . . . . . . 2 Scan Component 1 | . . . . . . . . . . . . . 1 Repair 1 | . . . . . . . . . . . . . 1 Recycling Unit Hacks . | . . . . . . . . . . . . . . Scanalyzer . | . . . . . . . . . . . . . . Garrison Access Hacks . | . . . . . . . . . . . . . . Unauthorized Hacks 2 | . . . . . . . . 2 . . . . . Terminals . | . . . . . . . . . . . . . . Fabricators . | . . . . . . . . . . . . . . Repair Stations . | . . . . . . . . . . . . . . Recycling Units 2 | . . . . . . . . 2 . . . . . Monitor 1 | . . . . . . . . 1 . . . . . Reject 1 | . . . . . . . . 1 . . . . . Scanalyzers . | . . . . . . . . . . . . . . Garrison Access . | . . . . . . . . . . . . . . Data Cores Recovered . | . . . . . . . . . . . . . . Used . | . . . . . . . . . . . . . . Hacking Detections 1 | . . . . . . . . . . 1 . . . Full Trace Events . | . . . . . . . . . . . . . . Feedback Events . | . . . . . . . . . . . . . . Feedback Blocked . | . . . . . . . . . . . . . . Robot Schematics Acquired . | . . . . . . . . . . . . . . Robots Built . | . . . . . . . . . . . . . . Authchips . | . . . . . . . . . . . . . . Time . | . . . . . . . . . . . . . . Total Robot Build Rating . | . . . . . . . . . . . . . . Part Schematics Acquired . | . . . . . . . . . . . . . . Parts Built . | . . . . . . . . . . . . . . Authchips . | . . . . . . . . . . . . . . Time . | . . . . . . . . . . . . . . Total Part Build Rating . | . . . . . . . . . . . . . . Parts Repaired . | . . . . . . . . . . . . . . Time 68 | . . . . . . . . . . . . . 68 Parts Recycled . | . . . . . . . . . . . . . . Recycled Matter . | . . . . . . . . . . . . . . Retrieved Matter . | . . . . . . . . . . . . . . Retrieved Components . | . . . . . . . . . . . . . . Parts Scanalyzed . | . . . . . . . . . . . . . . Part Schematics Acquired . | . . . . . . . . . . . . . . Parts Damaged . | . . . . . . . . . . . . . . Bothacking | -11 -10 -9 -9 -8 -7 -7 -6 -5 -5 -5 -5 -5 -4 ------------ Run | Yrd Mat Mat Min Mat Fac DSF Fac Fac Was Fac Upp Upp Fac Used RIF Installer . | . . . . . . . . . . . . . . Robots Hacked . | . . . . . . . . . . . . . . Non-combat . | . . . . . . . . . . . . . . Combat . | . . . . . . . . . . . . . . Robot Hacks Applied . | . . . . . . . . . . . . . . Relay Couplers Released . | . . . . . . . . . . . . . . Fabnet Peak Effective % . | . . . . . . . . . . . . . . Robots Rewired . | . . . . . . . . . . . . . . Allies Hacked 1 | . . . . . . . . . . 1 . . . Hacks Repelled . | . . . . . . . . . . . . . . Allies | -11 -10 -9 -9 -8 -7 -7 -6 -5 -5 -5 -5 -5 -4 -------- Run | Yrd Mat Mat Min Mat Fac DSF Fac Fac Was Fac Upp Upp Fac Total Allies 18 | . . . . . . . . . 18 . . . . Largest Group 18 | . . . . . . . . . 18 13 . . . Highest-Rated Group 638 | . . . . . . . . . 638 513 . . . Highest-Rated Ally 50 | . . . . . . . . . 50 50 . . . Total Orders . | . . . . . . . . . . . . . . Ally Attacks 167 | . . . . . . . . . 107 60 . . . Total Damage 6113 | . . . . . . . . . 3969 2144 . . . Kills 23 | . . . . . . . . . 9 14 . . . Allies Corrupted 1 | . . . . . . . . . . 1 . . . Allies Melted . | . . . . . . . . . . . . . . Intel | -11 -10 -9 -9 -8 -7 -7 -6 -5 -5 -5 -5 -5 -4 ------- Run | Yrd Mat Mat Min Mat Fac DSF Fac Fac Was Fac Upp Upp Fac Active Infowar (turns) 3218 | 11 183 363 . . . . 166 557 241 371 813 270 243 Terrain 557 | 11 183 363 . . . . . . . . . . . ECM 2661 | . . . . . . . 166 557 241 371 813 270 243 Robot Analysis Total . | . . . . . . . . . . . . . . Derelict Logs Recovered 3 | . . . 1 . . . . . . . 1 1 . Drone Launches . | . . . . . . . . . . . . . . Drone Recoveries . | . . . . . . . . . . . . . . Exploration | -11 -10 -9 -9 -8 -7 -7 -6 -5 -5 -5 -5 -5 -4 ------------- Run | Yrd Mat Mat Min Mat Fac DSF Fac Fac Was Fac Upp Upp Fac Turns Passed 4045 | 84 183 394 220 262 8 105 202 557 241 371 813 270 335 Spaces Moved 2366 | 43 96 171 169 172 16 142 118 262 153 213 549 141 121 Core 267 | 11 . . . 83 16 126 . . . . . . 31 Treads . | . . . . . . . . . . . . . . Legs 2099 | 32 96 171 169 89 . 16 118 262 153 213 549 141 90 Wheels . | . . . . . . . . . . . . . . Hover . | . . . . . . . . . . . . . . Flight . | . . . . . . . . . . . . . . Fastest Speed 50 | 50 120 120 120 50 50 50 120 120 120 120 120 190 50 Average Speed 125 | 108 120 120 120 102 50 57 151 120 120 120 136 190 153 Slowest Speed 400 | 190 120 120 120 260 50 120 190 120 120 120 190 190 400 Overloaded Moves . | . . . . . . . . . . . . . . Propulsion Burnouts . | . . . . . . . . . . . . . . Robots Hopped . | . . . . . . . . . . . . . . Potential Cave-ins . | . . . . . . . . . . . . . . Cave-ins Triggered . | . . . . . . . . . . . . . . Exploration Rate (%) 30 | 4 24 27 53 23 1 91 3 8 86 8 63 29 3 Regions Visited 13 Branch Regions 3 Pre-discovered Areas 2 | . . . 2 . . . . . . . . . . Known Exits Taken 1 | . . . . . 1 . . . . . . . . Unknown Exits Taken 9 | 1 1 1 1 1 . . 1 . . 1 1 1 . Scrap Searched 3 | . . . . . . . . . . . 1 2 . Spaces Dug 26 | . . 4 . 16 . . . 5 . 1 . . . Terrain Destroyed 230 | . . 8 16 113 . . . 8 1 42 39 . 3 Melee . | . . . . . . . . . . . . . . Projectile 15 | . . . . . . . . . 1 9 2 . 3 AOE 215 | . . 8 16 113 . . . 8 . 33 37 . . Terrain Rammed . | . . . . . . . . . . . . . . Walls Destroyed . | . . . . . . . . . . . . . . Machines Disabled . | . . . . . . . . . . . . . . Actions | -11 -10 -9 -9 -8 -7 -7 -6 -5 -5 -5 -5 -5 -4 --------- Run | Yrd Mat Mat Min Mat Fac DSF Fac Fac Was Fac Upp Upp Fac Total 3030 | 66 130 254 181 212 15 169 137 446 193 267 588 144 228 Wait 229 | . 4 4 8 . . . 1 123 23 15 1 . 50 Move 2354 | 42 95 170 168 171 15 141 117 262 152 212 548 140 121 Hop . | . . . . . . . . . . . . . . Pick Up 92 | 9 6 12 1 2 . 10 9 12 4 4 8 3 12 Fast Attach . | . . . . . . . . . . . . . . Attach 59 | 7 1 6 . 3 . 9 6 6 1 2 8 1 9 Detach 3 | . . . . . . 1 . . . . 1 . 1 Swap 39 | . 2 7 2 3 . . 1 10 4 2 5 . 3 Drop 33 | . 3 3 . 3 . 6 1 6 2 2 5 . 2 Fire 202 | 8 19 52 2 18 . . 2 27 7 27 12 . 28 Melee 5 | . . . . 5 . . . . . . . . . Ram 7 | . . . . 5 . . . . . . . . 2 Kick 5 | . . . . 2 . . . . . 3 . . . Crush . | . . . . . . . . . . . . . . Escape Stasis . | . . . . . . . . . . . . . . Rewire 2 | . . . . . . 2 . . . . . . . Trap . | . . . . . . . . . . . . . . Miscellaneous . | . . . . . . . . . . . . . . Route ------- -11/Scrapyard -10/Materials -9/Materials -9/Mines -8/Materials -7/Factory -7/DSF -6/Factory -5/Factory -5/Waste -5/Factory -5/Upper Caves -5/Upper Caves -4/Factory History --------- Turn | Location | Event 10 | -11/Scrapyard | Discovered new exit (range 15) 85 | -11/Scrapyard | Entered Materials 209 | -10/Materials | Discovered new exit (range 7) 268 | -10/Materials | Entered another Materials area 268 | -9/Materials | Evolved 2 slots: Propulsion x2 304 | -9/Materials | Build established: Mutant 617 | -9/Materials | Discovered new exit (range 11) 630 | -9/Materials | Lost 3 parts (1p2n) 631 | -9/Materials | Destroyed 17 combat bots 662 | -9/Materials | Entered Mines 677 | -9/Mines | Excavation squad dispatched 677 | -9/Mines | A large section of the Mines collapsed 748 | -9/Mines | Received a Rocket Launcher from a helpful Derelict 801 | -9/Mines | Learned location of Zion (-6) 817 | -9/Mines | Learned location of Storage (-9) 872 | -9/Mines | Discovered new exit (range 6) 882 | -9/Mines | Entered Materials 882 | -8/Materials | Evolved 2 slots: Propulsion x1, Weapon x1 1042 | -8/Materials | Lost 5 parts (1p3n1w) 1126 | -8/Materials | Lost 4 parts (1n1u2w) 1138 | -8/Materials | Discovered new exit (range 14) 1144 | -8/Materials | Entered Factory 1144 | -7/Factory | Evolved 2 slots: Propulsion x1, Utility x1 1152 | -7/Factory | Identified exit to DSF 1152 | -7/Factory | Entered DSF 1153 | -7/DSF | Joined Warlord attack on 0b10 via DSF 1177 | -7/DSF | Additional patrols routed to DSF 1202 | -7/DSF | Discovered new exit (range 16) 1257 | -7/DSF | Entered Factory 1257 | -6/Factory | Evolved 2 slots: Power x1, Utility x1 1441 | -6/Factory | Discovered new exit (range 14) 1458 | -6/Factory | Lost 3 allies 1459 | -6/Factory | Entered another Factory area 1459 | -5/Factory | Evolved 2 slots: Power x1, Propulsion x1 1518 | -5/Factory | Build established: Scavenger-Gunner 2016 | -5/Factory | Sucked down chute 2016 | -5/Factory | Entered Waste 2039 | -5/Waste | Spotted C-40 Crusher 2050 | -5/Waste | Warlord forces began an assault 2118 | -5/Waste | Spotted C-40 Crusher 2127 | -5/Waste | Allies destroyed C-40 Crusher 2140 | -5/Waste | Found Prototype Processor 2141 | -5/Waste | Identified Exp. Core Analyzer 2144 | -5/Waste | Spotted C-40 Crusher 2155 | -5/Waste | Destroyed C-40 Crusher 2163 | -5/Waste | Spotted C-40 Crusher 2168 | -5/Waste | Allies destroyed C-40 Crusher 2178 | -5/Waste | Spotted C-40 Crusher 2179 | -5/Waste | Allies destroyed C-40 Crusher 2195 | -5/Waste | Spotted C-40 Crusher 2197 | -5/Waste | Lost 5 allies 2201 | -5/Waste | Destroyed C-40 Crusher 2204 | -5/Waste | Allies destroyed C-40 Crusher 2216 | -5/Waste | Discovered new exit (range 15) 2257 | -5/Waste | Entered Factory 2257 | -5/Factory | Accompanied by 13 allies 2530 | -5/Factory | Lost 6 allies 2582 | -5/Factory | Lost 3 allies 2613 | -5/Factory | Discovered new exit (range 9) 2628 | -5/Factory | Entered Upper Caves 2644 | -5/Upper Caves | Lost 3 parts (1p1n1w) 2676 | -5/Upper Caves | Spotted B-75 Beast 2707 | -5/Upper Caves | Encountered a Warlord checkpoint 2716 | -5/Upper Caves | Learned Factory terminal intel 2958 | -5/Upper Caves | Found DCF Scrap (12 items) 3161 | -5/Upper Caves | Ambushed by research squad 3208 | -5/Upper Caves | Lost 7 parts (1p3n1u2w) 3429 | -5/Upper Caves | Discovered new exit (range 5) 3441 | -5/Upper Caves | Entered another Upper Caves area 3485 | -5/Upper Caves | Build established: Scavenger-Tank 3545 | -5/Upper Caves | Learned Factory terminal intel 3556 | -5/Upper Caves | Attracted the attention of an 0b10 checkpoint 3668 | -5/Upper Caves | Discovered new exit (range 8) 3711 | -5/Upper Caves | Entered Factory 3711 | -4/Factory | Evolved 2 slots: Propulsion x1, Utility x1 3712 | -4/Factory | Loaded intel: 26 terminal locations 4007 | -4/Factory | Core integrity fell below 50% 4027 | -4/Factory | Core integrity fell below 20% 4046 | -4/Factory | Destroyed by Y-64 Sentinel with Wave Gun Last Messages --------------- Acquired Adv. Heat Sink. Penetrated by Slug. Slug penetrates Earth. Penetrated by Slug. Slug penetrates Earth. U-05 Engineer builds a Door. Acquired Flexi-carbon Leg. Slammed into H-77 Assassin. Penetrated by Slug. Slug penetrates Wall. Slammed into H-77 Assassin. Slug penetrates Wall. Dropped Broken Neutrino Core. Acquired Backup Laser I. Penetrated by Slug. U-05 Engineer builds a Wall. R-10 Processor collects Broken Neutrino Core. Slug penetrates Wall. Penetrated by Slug. R-10 Processor collects Broken Adv. Heat Sink. Map ----- +----------------------------------------------------+ | ?????????????????????????????????????????????? | | ?????????????????????????????????????????????? | | ?????????????????????????????????????????????? | | ?????????????????????????????????????????????? | | ?????????????????????????????????????????????? | | ?????????????????????????????????????????????? | | ?????????????????????????????????????????????? | | ?????????????????????????????????????????????? | | ?????????????????????????????????????????????? | | ?????????????????????????????????????????????? | | ?????????????????????????????????????????????? | | ?????????????????????????????????????????????? | | ??????????????####???????##??????????????????? | | ?????????????# ????? #??????????????????? | | ?????????????# ????? #??????????????????? | | ?????????????# ??? #??????????????????? | | ????????????## ]] """ #??????????????????? | | ????????????#Y ]] #??????????????????? | | ?????????????# ] """ #??????????????????? | | ?????????????# """ #??????????????????? | | ?????????????# """ #??????????????????? | | ?????????????# #??????????????????? | | ??????????????? #??????????????????? | | ????????????????? ????? #????????????? | | ??????????????????? ???? #????????????? | | ????????????#########@##### #????????????? | | ????????????# #????????????? | | ???????????## #????????????? | | ???????????# u #????????????? | | ???????????#T #????????????? | | ???????????## #????????????? | | ????????????# ###########+###????????????? | | ????????????# #? ????????????????????? | | ????????????# #?""" "????????????????????? | | ????????????# # """ ""???????????????????? | | ????????????# # """ """ ""???????????????? | | ????????????# + ???????????? | | ????????????# # """ """ ""???????????????? | | ????????????# # """ ""???????????????????? | | ???????? ??# #?""" "????????????????????? | | ????????? ?# #? ????????????????????? | | ?????????" #" #??####????????????????????? | | ?????????? #%" ###########????????????????? | | ??????????? +" # """ #????????????????? | | ????????????# # """ #????????????????? | | ????????????# # ! """ #????????????????? | | ????????????# # #????????????????? | | ????????????# #" " ] #????????????????? | | ????????????# [#![! ! #????????????????? | | ????????????# #*=== #????????????????? | +----------------------------------------------------+ Best States ------------- Heat Dissipation 92 Energy Generation 47 Energy Capacity 745 Matter Stores 300 Matter Capacity 300 Sight Range 16 Terrain Scan Range 16 Terrain Scan Density 10 ECM Strength 2 Armor Coverage 150 Evasion (%) 55 Offensive Hacking 10 Item Schematics ----------------- None Robot Schematics ------------------ None Fabricated ------------ Nothing Repaired ---------- Nothing Alien Tech Used ----------------- None Achievements -------------- None Challenges ------------ None Game ------ Seed ArcsightVortexFlightbrick Manual? 0 Play Time 00:52:31 Cumulative 33.8 hours Start 2025.10.16 @ 20:34:14 End 2025.10.16 @ 21:59:33 Sessions 1 Manual Loads 0 Difficulty Rogue Special Mode None Game No. 83 Rogue 83 Adventurer 0 Explorer 0 Win Type - Total 0 Types 0/0/0/0/0/0/0/0/0/0 Lore% 23 Gallery% 31 Achievement% 29 Wizard Run 0 Options --------- Layout 2 ASCII 0 Keyboard 0 Movement Numpad Keybinds 0 Fullscreen 1 Font 24/Smallcaps Map View 50x44 Zoom Use 0% Tactical HUD 0 Map Filters NONE Filters NONE Steam 1 RUN: 2d8562cd-534d-4621-87ab-42f0589bb90d